[Event "*** Titled Tuesday Blitz"]
[Site "Chess.com"]
[Date "2021.03.30"]
[Round "1"]
[White "Politov_Pavel"]
[Black "Fy_Rakotomaharo"]
[Result "0-1"]
[WhiteElo "2387"]
[BlackElo "2715"]
[TimeControl "180+1"]
[EndTime "10:06:49 PDT"]
[Termination "Fy_Rakotomaharo won by resignation"]

1. d4 {[%clk 0:02:58.7]} 1... Nf6 {[%clk 0:02:59.5]} 2. Nf3 {[%clk 0:02:58.5]}
2... g6 {[%clk 0:02:59.7]} 3. Bg5 {[%clk 0:02:58]} 3... Bg7 {[%clk 0:03:00]} 4.
Nbd2 {[%clk 0:02:58]} 4... O-O {[%clk 0:03:00.3]} 5. c3 {[%clk 0:02:58.1]} 5...
d6 {[%clk 0:03:00.6]} 6. e4 {[%clk 0:02:56.7]} 6... c5 {[%clk 0:03:00.8]} 7.
dxc5 {[%clk 0:02:49.3]} 7... dxc5 {[%clk 0:03:01.7]} 8. Bc4 {[%clk 0:02:48.6]}
8... Nc6 {[%clk 0:03:01.2]} 9. O-O {[%clk 0:02:40.4]} 9... Nh5 {[%clk
0:02:59.7]} 10. Qe2 {[%clk 0:02:36.1]} 10... Qc7 {[%clk 0:02:57.8]} 11. Qe3
{[%clk 0:02:30.5]} 11... b6 {[%clk 0:02:55.3]} 12. e5 {[%clk 0:02:06.1]} 12...
Nxe5 {[%clk 0:02:48.2]} 13. Bd5 {[%clk 0:01:59.3]} 13... Rb8 {[%clk 0:02:37.1]}
14. Rfe1 {[%clk 0:01:46.2]} 14... e6 {[%clk 0:02:33.1]} 15. Be4 {[%clk 0:01:31]}
15... Ng4 {[%clk 0:02:22.5]} 16. Qe2 {[%clk 0:01:27]} 16... h6 {[%clk
0:02:21.8]} 17. Bh4 {[%clk 0:01:25]} 17... f5 {[%clk 0:01:59.3]} 18. Bc2 {[%clk
0:01:14.2]} 18... g5 {[%clk 0:01:39.7]} 19. Bg3 {[%clk 0:00:49.7]} 19... f4
{[%clk 0:01:39.9]} 20. Nxg5 {[%clk 0:00:43.2]} 20... fxg3 {[%clk 0:01:40]} 21.
fxg3 {[%clk 0:00:43.9]} 21... e5 {[%clk 0:01:13.1]} 22. Nge4 {[%clk 0:00:14.6]}
22... Nhf6 {[%clk 0:00:32.3]} 23. Nxf6+ {[%clk 0:00:14.7]} 23... Nxf6 {[%clk
0:00:28.8]} 24. Ne4 {[%clk 0:00:15.1]} 24... Nxe4 {[%clk 0:00:27.2]} 25. Qxe4
{[%clk 0:00:16]} 25... Bf5 {[%clk 0:00:25.7]} 26. Qd5+ {[%clk 0:00:11.1]} 26...
Kh8 {[%clk 0:00:25.3]} 27. Bxf5 {[%clk 0:00:08.7]} 27... Rxf5 {[%clk 0:00:26.2]}
28. Re4 {[%clk 0:00:08.1]} 28... Rbf8 {[%clk 0:00:26]} 29. Rae1 {[%clk 0:00:06]}
29... Qf7 {[%clk 0:00:26]} 30. h3 {[%clk 0:00:06.1]} 30... Qxd5 {[%clk
0:00:25.8]} 0-1

[Event "*** Titled Tuesday Blitz"]
[Site "Chess.com"]
[Date "2021.03.30"]
[Round "1"]
[White "zacachess"]
[Black "esapunov"]
[Result "0-1"]
[WhiteElo "2395"]
[BlackElo "2726"]
[TimeControl "180+1"]
[EndTime "10:06:50 PDT"]
[Termination "esapunov won by resignation"]

1. e4 {[%clk 0:03:00.9]} 1... c5 {[%clk 0:02:59.8]} 2. Nf3 {[%clk 0:03:00.2]}
2... d6 {[%clk 0:03:00.2]} 3. d4 {[%clk 0:03:00.6]} 3... cxd4 {[%clk 0:03:00.6]}
4. Nxd4 {[%clk 0:03:01.5]} 4... Nf6 {[%clk 0:03:01]} 5. Nc3 {[%clk 0:03:01.5]}
5... Nc6 {[%clk 0:03:01.6]} 6. Bg5 {[%clk 0:02:59.9]} 6... e6 {[%clk 0:03:01.9]}
7. Qd2 {[%clk 0:03:00.1]} 7... a6 {[%clk 0:03:02.3]} 8. O-O-O {[%clk 0:02:59.8]}
8... h6 {[%clk 0:03:03]} 9. Nxc6 {[%clk 0:02:57.3]} 9... bxc6 {[%clk 0:03:02.8]}
10. Bf4 {[%clk 0:02:57.8]} 10... d5 {[%clk 0:03:03.5]} 11. Qe3 {[%clk 0:02:48]}
11... Bb4 {[%clk 0:03:02.7]} 12. f3 {[%clk 0:02:44.6]} 12... O-O {[%clk
0:02:58.9]} 13. g4 {[%clk 0:02:35.1]} 13... c5 {[%clk 0:02:34.7]} 14. g5 {[%clk
0:01:41.1]} 14... d4 {[%clk 0:02:14.5]} 15. Qf2 {[%clk 0:01:14.8]} 15... hxg5
{[%clk 0:02:01.2]} 16. Bxg5 {[%clk 0:01:13.6]} 16... Bxc3 {[%clk 0:01:59.7]} 17.
bxc3 {[%clk 0:01:13.1]} 17... Nxe4 {[%clk 0:01:59.4]} 18. fxe4 {[%clk
0:01:07.8]} 18... Qxg5+ {[%clk 0:01:58.7]} 19. Kb1 {[%clk 0:01:06]} 19... dxc3
{[%clk 0:01:47]} 20. Rg1 {[%clk 0:01:02.1]} 20... Qe5 {[%clk 0:01:41.1]} 21. Ka1
{[%clk 0:00:56.8]} 21... Bb7 {[%clk 0:01:35.9]} 22. Bd3 {[%clk 0:00:47.8]} 22...
Rad8 {[%clk 0:01:25.7]} 23. Qh4 {[%clk 0:00:41.9]} 23... c4 {[%clk 0:01:12.2]}
24. Rg5 {[%clk 0:00:38.2]} 24... cxd3 {[%clk 0:00:34]} 25. Rxe5 {[%clk
0:00:14.9]} 25... dxc2 {[%clk 0:00:34]} 26. Rc1 {[%clk 0:00:15.3]} 26... Rd1
{[%clk 0:00:32]} 27. Qf4 {[%clk 0:00:15.7]} 27... Rfd8 {[%clk 0:00:30]} 28. Rc5
{[%clk 0:00:14.5]} 28... Rxc1+ {[%clk 0:00:28.3]} 29. Qxc1 {[%clk 0:00:15.4]}
29... Rd1 {[%clk 0:00:28.4]} 30. Rxc3 {[%clk 0:00:11.9]} 30... Rxc1+ {[%clk
0:00:27.7]} 31. Kb2 {[%clk 0:00:12.8]} 31... Re1 {[%clk 0:00:25.8]} 32. Rxc2
{[%clk 0:00:11.4]} 32... Bxe4 {[%clk 0:00:25.7]} 0-1

[Event "*** Titled Tuesday Blitz"]
[Site "Chess.com"]
[Date "2021.03.30"]
[Round "1"]
[White "nrvisakh"]
[Black "The_Machine04"]
[Result "1-0"]
[WhiteElo "2832"]
[BlackElo "2436"]
[TimeControl "180+1"]
[EndTime "10:06:55 PDT"]
[Termination "nrvisakh won by resignation"]

1. e4 {[%clk 0:02:59.3]} 1... d6 {[%clk 0:02:53.8]} 2. d4 {[%clk 0:02:57.7]}
2... Nf6 {[%clk 0:02:54.7]} 3. Nc3 {[%clk 0:02:57.1]} 3... e5 {[%clk 0:02:52.1]}
4. Nf3 {[%clk 0:02:51.9]} 4... Nbd7 {[%clk 0:02:39.6]} 5. a4 {[%clk 0:02:45.2]}
5... Be7 {[%clk 0:02:37.1]} 6. g4 {[%clk 0:02:44.5]} 6... Nxg4 {[%clk
0:02:32.7]} 7. Rg1 {[%clk 0:02:44]} 7... h5 {[%clk 0:02:14.1]} 8. h3 {[%clk
0:02:42.4]} 8... Ngf6 {[%clk 0:02:09.3]} 9. Rxg7 {[%clk 0:02:39.1]} 9... exd4
{[%clk 0:02:00.2]} 10. Qxd4 {[%clk 0:02:32.4]} 10... Nc5 {[%clk 0:01:57.9]} 11.
Ng5 {[%clk 0:02:04.3]} 11... Ne6 {[%clk 0:01:50.3]} 12. Nxe6 {[%clk 0:02:03.9]}
12... Bxe6 {[%clk 0:01:50.7]} 13. Bg5 {[%clk 0:02:02.1]} 13... Rf8 {[%clk
0:01:18.5]} 14. Rd1 {[%clk 0:01:50.4]} 14... Nd7 {[%clk 0:01:12.5]} 15. Bxe7
{[%clk 0:01:18.7]} 15... Qxe7 {[%clk 0:01:13.4]} 16. Be2 {[%clk 0:01:19.5]}
16... h4 {[%clk 0:01:09.1]} 17. f4 {[%clk 0:01:08.3]} 17... Qf6 {[%clk
0:00:57.7]} 18. f5 {[%clk 0:01:04.7]} 18... Ne5 {[%clk 0:00:43.5]} 19. Rg1
{[%clk 0:00:52.6]} 19... Bd7 {[%clk 0:00:25.4]} 20. Nd5 {[%clk 0:00:52.3]} 20...
Qd8 {[%clk 0:00:25.2]} 21. Qe3 {[%clk 0:00:47.9]} 21... Bc6 {[%clk 0:00:22.8]}
22. Nf4 {[%clk 0:00:43.9]} 22... Qe7 {[%clk 0:00:17.5]} 23. Nh5 {[%clk
0:00:41.7]} 23... b6 {[%clk 0:00:14.6]} 24. f6 {[%clk 0:00:32.8]} 24... Qe6
{[%clk 0:00:12]} 25. Ng7+ {[%clk 0:00:32.7]} 25... Kd7 {[%clk 0:00:10.5]} 26.
Nxe6 {[%clk 0:00:32.5]} 26... fxe6 {[%clk 0:00:10.1]} 27. Rg7+ {[%clk 0:00:32]}
27... Rf7 {[%clk 0:00:10.1]} 28. Bh5 {[%clk 0:00:30.9]} 28... Rxg7 {[%clk
0:00:08.9]} 29. fxg7 {[%clk 0:00:31.8]} 29... Rg8 {[%clk 0:00:09.6]} 30. Qg5
{[%clk 0:00:31]} 30... Bxe4 {[%clk 0:00:08.1]} 31. Qxe5 {[%clk 0:00:31]} 1-0

[Event "*** Titled Tuesday Blitz"]
[Site "Chess.com"]
[Date "2021.03.30"]
[Round "1"]
[White "hleol"]
[Black "Artem_Sadovsky"]
[Result "1/2-1/2"]
[WhiteElo "2364"]
[BlackElo "2664"]
[TimeControl "180+1"]
[EndTime "10:06:58 PDT"]
[Termination "Game drawn by repetition"]

1. d4 {[%clk 0:02:59]} 1... g6 {[%clk 0:02:56.7]} 2. c4 {[%clk 0:02:55.8]} 2...
Bg7 {[%clk 0:02:53.9]} 3. e4 {[%clk 0:02:54.7]} 3... d6 {[%clk 0:02:52.9]} 4.
Nc3 {[%clk 0:02:52.7]} 4... e5 {[%clk 0:02:48.7]} 5. Be3 {[%clk 0:02:47]} 5...
Nc6 {[%clk 0:02:47.2]} 6. d5 {[%clk 0:02:44.7]} 6... Nce7 {[%clk 0:02:47]} 7. g3
{[%clk 0:02:42.6]} 7... f5 {[%clk 0:02:45.7]} 8. Bg2 {[%clk 0:02:38.6]} 8... Nf6
{[%clk 0:02:38.9]} 9. Qd2 {[%clk 0:02:36.1]} 9... O-O {[%clk 0:02:29.4]} 10. Bh6
{[%clk 0:02:34.3]} 10... Bxh6 {[%clk 0:02:11.3]} 11. Qxh6 {[%clk 0:02:35.2]}
11... fxe4 {[%clk 0:02:11.2]} 12. Nxe4 {[%clk 0:02:26.1]} 12... Nf5 {[%clk
0:02:10.8]} 13. Qd2 {[%clk 0:02:21.3]} 13... Nxe4 {[%clk 0:02:01.7]} 14. Bxe4
{[%clk 0:02:18.6]} 14... Nd4 {[%clk 0:02:01.7]} 15. O-O-O {[%clk 0:02:17.5]}
15... Qf6 {[%clk 0:01:44.8]} 16. f4 {[%clk 0:02:15.7]} 16... Bf5 {[%clk
0:01:40.1]} 17. fxe5 {[%clk 0:01:59.1]} 17... dxe5 {[%clk 0:01:37.2]} 18. Bxf5
{[%clk 0:01:56.9]} 18... Qxf5 {[%clk 0:01:37.5]} 19. Ne2 {[%clk 0:01:46.6]}
19... Nf3 {[%clk 0:01:22]} 20. Qe3 {[%clk 0:01:41.6]} 20... e4 {[%clk
0:01:13.1]} 21. Nd4 {[%clk 0:01:28]} 21... Nxd4 {[%clk 0:00:53]} 22. Rxd4 {[%clk
0:01:28.9]} 22... Rae8 {[%clk 0:00:51.9]} 23. Re1 {[%clk 0:01:28.2]} 23... Qf2
{[%clk 0:00:48.4]} 24. Rxe4 {[%clk 0:01:15.8]} 24... Rxe4 {[%clk 0:00:49.3]} 25.
Qxe4 {[%clk 0:01:15.2]} 25... Qxh2 {[%clk 0:00:50.2]} 26. Qe6+ {[%clk
0:00:48.8]} 26... Rf7 {[%clk 0:00:49]} 27. Qe8+ {[%clk 0:00:44]} 27... Kg7
{[%clk 0:00:48.2]} 28. Qe5+ {[%clk 0:00:44.4]} 28... Kg8 {[%clk 0:00:41.7]} 29.
Qe8+ {[%clk 0:00:34]} 29... Kg7 {[%clk 0:00:23.6]} 30. Qe5+ {[%clk 0:00:33.9]}
30... Kh6 {[%clk 0:00:17.1]} 31. Qe3+ {[%clk 0:00:33.7]} 31... Kh5 {[%clk
0:00:12.9]} 32. Qe5+ {[%clk 0:00:32.6]} 32... Kh6 {[%clk 0:00:05.7]} 33. Qe3+
{[%clk 0:00:31.8]} 33... Kg7 {[%clk 0:00:03.9]} 34. Qe5+ {[%clk 0:00:30]}
1/2-1/2

[Event "*** Titled Tuesday Blitz"]
[Site "Chess.com"]
[Date "2021.03.30"]
[Round "1"]
[White "Klavdia_Nik"]
[Black "karinachess1"]
[Result "0-1"]
[WhiteElo "2019"]
[BlackElo "2495"]
[TimeControl "180+1"]
[EndTime "10:06:58 PDT"]
[Termination "karinachess1 won on time"]

1. Nf3 {[%clk 0:02:52.3]} 1... Nf6 {[%clk 0:02:58.2]} 2. c4 {[%clk 0:02:50.4]}
2... e6 {[%clk 0:02:57.3]} 3. b3 {[%clk 0:02:50.4]} 3... Be7 {[%clk 0:02:54.9]}
4. Bb2 {[%clk 0:02:50.8]} 4... O-O {[%clk 0:02:54.2]} 5. g3 {[%clk 0:02:51.3]}
5... c5 {[%clk 0:02:48.8]} 6. Bg2 {[%clk 0:02:48.8]} 6... d5 {[%clk 0:02:48.8]}
7. O-O {[%clk 0:02:47.9]} 7... Nc6 {[%clk 0:02:48.5]} 8. d3 {[%clk 0:02:46.6]}
8... d4 {[%clk 0:02:45.9]} 9. Nbd2 {[%clk 0:02:46.3]} 9... e5 {[%clk 0:02:44.2]}
10. b4 {[%clk 0:02:44.2]} 10... cxb4 {[%clk 0:02:40.7]} 11. a3 {[%clk
0:02:42.9]} 11... a5 {[%clk 0:02:35.1]} 12. axb4 {[%clk 0:02:34.1]} 12... Bxb4
{[%clk 0:02:36]} 13. Ba3 {[%clk 0:02:21.8]} 13... Re8 {[%clk 0:02:34.6]} 14.
Bxb4 {[%clk 0:02:18.6]} 14... Nxb4 {[%clk 0:02:35.5]} 15. Ng5 {[%clk 0:02:18.2]}
15... h6 {[%clk 0:02:27]} 16. Nge4 {[%clk 0:02:16.5]} 16... Nxe4 {[%clk
0:02:26.7]} 17. Nxe4 {[%clk 0:02:16.3]} 17... f5 {[%clk 0:02:26.7]} 18. Nc5
{[%clk 0:02:03.1]} 18... Qc7 {[%clk 0:02:25.1]} 19. Na4 {[%clk 0:01:31.5]} 19...
Bd7 {[%clk 0:02:20.6]} 20. Qb3 {[%clk 0:01:29.6]} 20... Bc6 {[%clk 0:02:17.5]}
21. c5+ {[%clk 0:01:01.2]} 21... Kh7 {[%clk 0:02:10.9]} 22. Nb6 {[%clk 0:00:59]}
22... Ra6 {[%clk 0:01:56]} 23. Bh3 {[%clk 0:00:45.4]} 23... g6 {[%clk
0:01:33.3]} 24. Qc4 {[%clk 0:00:34]} 24... Kg7 {[%clk 0:01:22.4]} 25. Rfc1
{[%clk 0:00:32]} 25... Qf7 {[%clk 0:01:16.4]} 26. Qxf7+ {[%clk 0:00:24.8]} 26...
Kxf7 {[%clk 0:01:17.3]} 27. Nc4 {[%clk 0:00:24.8]} 27... Kf6 {[%clk 0:01:06.4]}
28. Rxa5 {[%clk 0:00:18.6]} 28... e4 {[%clk 0:00:54]} 29. Rxa6 {[%clk
0:00:10.3]} 29... Nxa6 {[%clk 0:00:54.9]} 30. Nd6 {[%clk 0:00:10.3]} 30... Re5
{[%clk 0:00:53.3]} 31. Bg2 {[%clk 0:00:07]} 31... Rxc5 {[%clk 0:00:45.9]} 32.
Rb1 {[%clk 0:00:01.9]} 32... exd3 {[%clk 0:00:28.8]} 0-1

[Event "*** Titled Tuesday Blitz"]
[Site "Chess.com"]
[Date "2021.03.30"]
[Round "1"]
[White "x-5963514717"]
[Black "MarcoRiehle"]
[Result "0-1"]
[WhiteElo "2362"]
[BlackElo "2685"]
[TimeControl "180+1"]
[EndTime "10:06:59 PDT"]
[Termination "MarcoRiehle won by resignation"]

1. Nf3 {[%clk 0:02:59.8]} 1... d5 {[%clk 0:02:59.1]} 2. g3 {[%clk 0:02:59.5]}
2... c5 {[%clk 0:02:58.5]} 3. Bg2 {[%clk 0:02:59.5]} 3... Nc6 {[%clk 0:02:50.4]}
4. d4 {[%clk 0:02:59.1]} 4... Nf6 {[%clk 0:02:49.4]} 5. O-O {[%clk 0:02:58.1]}
5... e6 {[%clk 0:02:47.8]} 6. c4 {[%clk 0:02:56.6]} 6... dxc4 {[%clk 0:02:48.7]}
7. Ne5 {[%clk 0:02:54]} 7... Nxe5 {[%clk 0:02:42.1]} 8. dxe5 {[%clk 0:02:53.5]}
8... Nd5 {[%clk 0:02:42.6]} 9. Na3 {[%clk 0:02:44.5]} 9... c3 {[%clk 0:02:39.6]}
10. e4 {[%clk 0:02:15.9]} 10... cxb2 {[%clk 0:02:30.7]} 11. Bxb2 {[%clk
0:02:16.8]} 11... Nc7 {[%clk 0:02:30.1]} 12. Qxd8+ {[%clk 0:02:14.7]} 12... Kxd8
{[%clk 0:02:29.7]} 13. Rfd1+ {[%clk 0:02:14.6]} 13... Bd7 {[%clk 0:02:23.5]} 14.
Rd2 {[%clk 0:02:06.4]} 14... Ke8 {[%clk 0:02:10.7]} 15. Nc4 {[%clk 0:01:58.4]}
15... Bc6 {[%clk 0:01:51.3]} 16. Na5 {[%clk 0:01:50.1]} 16... Rd8 {[%clk
0:01:46.7]} 17. Rxd8+ {[%clk 0:01:41]} 17... Kxd8 {[%clk 0:01:47.6]} 18. Rd1+
{[%clk 0:01:41.3]} 18... Kc8 {[%clk 0:01:45]} 19. Nxc6 {[%clk 0:01:40.9]} 19...
bxc6 {[%clk 0:01:45.9]} 20. Bf1 {[%clk 0:01:37.3]} 20... Be7 {[%clk 0:01:43.5]}
21. f3 {[%clk 0:01:19.1]} 21... Rd8 {[%clk 0:01:39.9]} 22. Rxd8+ {[%clk
0:01:18.9]} 22... Kxd8 {[%clk 0:01:40.8]} 23. Kf2 {[%clk 0:01:17.2]} 23... Kc8
{[%clk 0:01:37.4]} 24. Ke3 {[%clk 0:01:15.8]} 24... Kb7 {[%clk 0:01:37.3]} 25.
f4 {[%clk 0:01:10.5]} 25... Kb6 {[%clk 0:01:36.6]} 26. h4 {[%clk 0:01:08.9]}
26... Ka5 {[%clk 0:01:20.4]} 27. f5 {[%clk 0:00:48.4]} 27... Kb4 {[%clk
0:01:19.4]} 28. f6 {[%clk 0:00:48.8]} 28... Bf8 {[%clk 0:01:19.4]} 29. g4 {[%clk
0:00:41.4]} 29... g6 {[%clk 0:01:16.8]} 30. Kd2 {[%clk 0:00:35.4]} 30... Nb5
{[%clk 0:01:12.1]} 31. Kc2 {[%clk 0:00:16.8]} 31... c4 {[%clk 0:01:10.3]} 32.
Be2 {[%clk 0:00:14.3]} 32... c3 {[%clk 0:01:07.3]} 33. a3+ {[%clk 0:00:10.9]}
33... Nxa3+ {[%clk 0:00:54.9]} 34. Bxa3+ {[%clk 0:00:10.9]} 34... Kxa3 {[%clk
0:00:55.8]} 35. Kxc3 {[%clk 0:00:11.7]} 35... a5 {[%clk 0:00:55.5]} 36. h5
{[%clk 0:00:10.4]} 36... Bb4+ {[%clk 0:00:47.1]} 37. Kc2 {[%clk 0:00:08.7]}
37... gxh5 {[%clk 0:00:46.8]} 38. gxh5 {[%clk 0:00:09.6]} 38... Bc5 {[%clk
0:00:47.2]} 39. Bc4 {[%clk 0:00:07.2]} 39... Bd4 {[%clk 0:00:44.3]} 40. Bxe6
{[%clk 0:00:04.3]} 40... fxe6 {[%clk 0:00:45.2]} 41. f7 {[%clk 0:00:04]} 41...
Bc5 {[%clk 0:00:45.7]} 42. Kd3 {[%clk 0:00:03.7]} 42... Kb4 {[%clk 0:00:44.6]}
0-1

[Event "*** Titled Tuesday Blitz"]
[Site "Chess.com"]
[Date "2021.03.30"]
[Round "1"]
[White "profofchess"]
[Black "Twitch_ElhamBlitz05"]
[Result "0-1"]
[WhiteElo "2456"]
[BlackElo "2876"]
[TimeControl "180+1"]
[EndTime "10:07:00 PDT"]
[Termination "Twitch_ElhamBlitz05 won by resignation"]

1. e4 {[%clk 0:02:56.6]} 1... c6 {[%clk 0:02:59.9]} 2. Nf3 {[%clk 0:02:56.4]}
2... d5 {[%clk 0:03:00.8]} 3. Nc3 {[%clk 0:02:56.6]} 3... dxe4 {[%clk
0:03:01.2]} 4. Nxe4 {[%clk 0:02:56.2]} 4... Nf6 {[%clk 0:03:02.1]} 5. Qe2 {[%clk
0:02:55.9]} 5... Nxe4 {[%clk 0:03:01.3]} 6. Qxe4 {[%clk 0:02:56.8]} 6... Qd5
{[%clk 0:03:01.6]} 7. Qf4 {[%clk 0:02:47.1]} 7... Qf5 {[%clk 0:03:01.5]} 8. Qe3
{[%clk 0:02:36.3]} 8... Qe6 {[%clk 0:02:59.9]} 9. b3 {[%clk 0:02:34.9]} 9...
Qxe3+ {[%clk 0:02:59.7]} 10. fxe3 {[%clk 0:02:35.2]} 10... Bf5 {[%clk
0:02:59.4]} 11. Bd3 {[%clk 0:02:28]} 11... Bxd3 {[%clk 0:02:58.9]} 12. cxd3
{[%clk 0:02:28.9]} 12... Nd7 {[%clk 0:02:59.4]} 13. Bb2 {[%clk 0:02:29.4]} 13...
f6 {[%clk 0:02:50.6]} 14. Ke2 {[%clk 0:02:23.9]} 14... e5 {[%clk 0:02:37]} 15.
d4 {[%clk 0:02:22.8]} 15... e4 {[%clk 0:02:34.4]} 16. Ne1 {[%clk 0:02:14.3]}
16... Bd6 {[%clk 0:02:34]} 17. d3 {[%clk 0:02:05]} 17... exd3+ {[%clk
0:02:34.9]} 18. Nxd3 {[%clk 0:02:04.8]} 18... O-O {[%clk 0:02:34.3]} 19. Raf1
{[%clk 0:01:53]} 19... Rfe8 {[%clk 0:02:34.3]} 20. Nf4 {[%clk 0:01:52]} 20...
Re7 {[%clk 0:02:27.1]} 21. Rf3 {[%clk 0:01:46.4]} 21... Rae8 {[%clk 0:02:22.8]}
22. g3 {[%clk 0:01:25.5]} 22... Nb6 {[%clk 0:02:19.9]} 23. Re1 {[%clk
0:01:01.6]} 23... Bxf4 {[%clk 0:02:12.9]} 24. gxf4 {[%clk 0:01:00.2]} 24... Nd5
{[%clk 0:02:13.6]} 25. Kd2 {[%clk 0:00:56]} 25... f5 {[%clk 0:02:13.2]} 26. Ba3
{[%clk 0:00:54.1]} 26... Re6 {[%clk 0:02:11.5]} 27. h4 {[%clk 0:00:50.4]} 27...
Nf6 {[%clk 0:02:10.8]} 28. Kd3 {[%clk 0:00:36.5]} 28... Kf7 {[%clk 0:02:10.2]}
29. Rg3 {[%clk 0:00:29.9]} 29... g6 {[%clk 0:02:06]} 30. Reg1 {[%clk 0:00:24.7]}
30... Ng4 {[%clk 0:02:03.3]} 31. Bc1 {[%clk 0:00:23.7]} 31... Nf2+ {[%clk
0:01:55.7]} 32. Kc2 {[%clk 0:00:17.9]} 32... Ne4 {[%clk 0:01:55.7]} 33. Rh3
{[%clk 0:00:17.4]} 33... Nf6 {[%clk 0:01:55.9]} 34. Kd3 {[%clk 0:00:14.8]} 34...
b6 {[%clk 0:01:52.7]} 35. a4 {[%clk 0:00:14.3]} 35... Rd8 {[%clk 0:01:51.7]} 36.
Kc2 {[%clk 0:00:12.8]} 36... Rd5 {[%clk 0:01:43.5]} 37. Bb2 {[%clk 0:00:11.6]}
37... Ng4 {[%clk 0:01:40.3]} 38. Rgg3 {[%clk 0:00:11.5]} 38... Nf2 {[%clk
0:01:32]} 39. Rh2 {[%clk 0:00:10.6]} 39... Ne4 {[%clk 0:01:32.7]} 40. Rgh3
{[%clk 0:00:09.9]} 40... Nf6 {[%clk 0:01:32.5]} 41. Rg3 {[%clk 0:00:09]} 41...
Rd7 {[%clk 0:01:28.5]} 42. Rhh3 {[%clk 0:00:08.8]} 42... Rde7 {[%clk 0:01:28]}
43. Kd3 {[%clk 0:00:08.6]} 43... Ng4 {[%clk 0:01:25.2]} 44. Rf3 {[%clk
0:00:08.6]} 44... h5 {[%clk 0:01:14.4]} 45. Bc1 {[%clk 0:00:08.4]} 45... Rd7
{[%clk 0:01:14.8]} 46. Bb2 {[%clk 0:00:07.9]} 46... c5 {[%clk 0:01:15]} 47. Rh1
{[%clk 0:00:07.9]} 47... Re4 {[%clk 0:01:00.4]} 48. Rd1 {[%clk 0:00:07.9]} 48...
cxd4 {[%clk 0:00:59.5]} 49. Bxd4 {[%clk 0:00:07.8]} 49... Nxe3 {[%clk
0:00:58.5]} 50. Rxe3 {[%clk 0:00:03.6]} 50... Rexd4+ {[%clk 0:00:58.7]} 0-1

[Event "*** Titled Tuesday Blitz"]
[Site "Chess.com"]
[Date "2021.03.30"]
[Round "1"]
[White "sbouchet"]
[Black "kflorian98"]
[Result "1-0"]
[WhiteElo "2394"]
[BlackElo "2686"]
[TimeControl "180+1"]
[EndTime "10:07:00 PDT"]
[Termination "sbouchet won by resignation"]

1. e4 {[%clk 0:02:57.7]} 1... c6 {[%clk 0:02:58.4]} 2. Nc3 {[%clk 0:02:55.9]}
2... d5 {[%clk 0:02:58]} 3. Nf3 {[%clk 0:02:56.4]} 3... Bg4 {[%clk 0:02:56.6]}
4. h3 {[%clk 0:02:55.1]} 4... Bxf3 {[%clk 0:02:55.3]} 5. Qxf3 {[%clk 0:02:56]}
5... e6 {[%clk 0:02:55.3]} 6. d3 {[%clk 0:02:56.4]} 6... g6 {[%clk 0:02:50.4]}
7. Bd2 {[%clk 0:02:46.5]} 7... Bg7 {[%clk 0:02:49.6]} 8. g4 {[%clk 0:02:46.3]}
8... Qb6 {[%clk 0:02:44]} 9. O-O-O {[%clk 0:02:41.8]} 9... Ne7 {[%clk
0:02:41.7]} 10. h4 {[%clk 0:01:59.4]} 10... h6 {[%clk 0:02:08.3]} 11. Qg3 {[%clk
0:01:11.7]} 11... Na6 {[%clk 0:01:52.8]} 12. h5 {[%clk 0:01:11.6]} 12... g5
{[%clk 0:01:50.4]} 13. f4 {[%clk 0:01:11.6]} 13... Nb4 {[%clk 0:01:47.7]} 14.
Kb1 {[%clk 0:01:00.5]} 14... gxf4 {[%clk 0:01:46.6]} 15. Qxf4 {[%clk 0:00:59.3]}
15... dxe4 {[%clk 0:01:28.4]} 16. dxe4 {[%clk 0:00:55.3]} 16... O-O-O {[%clk
0:01:22.3]} 17. Bc4 {[%clk 0:00:31.8]} 17... Rhf8 {[%clk 0:00:55.5]} 18. Bb3
{[%clk 0:00:31.5]} 18... Qc5 {[%clk 0:00:51.3]} 19. Be3 {[%clk 0:00:28.9]} 19...
Rxd1+ {[%clk 0:00:46.4]} 20. Rxd1 {[%clk 0:00:26.8]} 20... Qa5 {[%clk
0:00:46.7]} 21. a3 {[%clk 0:00:26.7]} 21... Na6 {[%clk 0:00:45]} 22. Bxa7 {[%clk
0:00:25.7]} 22... Nc7 {[%clk 0:00:38.4]} 23. Be3 {[%clk 0:00:22.1]} 23... Nb5
{[%clk 0:00:35.8]} 24. Nxb5 {[%clk 0:00:20.7]} 24... Qxb5 {[%clk 0:00:36.7]} 25.
Qd6 {[%clk 0:00:18.8]} 25... Bf6 {[%clk 0:00:29.8]} 26. Bf4 {[%clk 0:00:17.7]}
26... e5 {[%clk 0:00:26.6]} 27. Bxh6 {[%clk 0:00:17.7]} 27... Qe2 {[%clk
0:00:20.9]} 28. Bxf8 {[%clk 0:00:15.5]} 28... Nd5 {[%clk 0:00:21.2]} 29. exd5
{[%clk 0:00:13]} 29... Qxd1+ {[%clk 0:00:21.5]} 30. Ka2 {[%clk 0:00:13.6]} 30...
Bg7 {[%clk 0:00:20.3]} 31. dxc6 {[%clk 0:00:12.9]} 31... Qxd6 {[%clk 0:00:19.1]}
32. Bxd6 {[%clk 0:00:12.9]} 32... e4 {[%clk 0:00:20]} 33. cxb7+ {[%clk
0:00:11.5]} 33... Kxb7 {[%clk 0:00:20.9]} 34. Bd5+ {[%clk 0:00:11.8]} 34... Kb6
{[%clk 0:00:21.8]} 35. Bxe4 {[%clk 0:00:12]} 35... Bf8 {[%clk 0:00:22.7]} 36.
Bxf8 {[%clk 0:00:11.6]} 1-0